Cogmind - Beta 15 @@@ ROGUE MODE // 2025.08.03 @ 21:12:18 Player: Anting Result: Destroyed by S-43 Plague with Heavy Machine Gun Performance ------------- Evolutions (7) 3500 Regions Visited (12) 2400 Robots Destroyed (18) 90 Value Destroyed (268) 268 Prototype IDs (28) 560 Alien Tech Used (0) 0 Bonus (636) 636 TOTAL SCORE: 7454 Bonus ------- Pacifist 270 Follower Combat Kills 66 Aligned with FarCom 300 Cogmind --------- Core Integrity 0/1300 Matter 186/300 Energy 95/100 System Corruption 2% Temperature Cool (0) Movement Core (50) Location -3/Research Parts ------- > --- POWER (2) -------- (None) > --- PROPULSION (2) --- (None) > --- UTILITY (13) ----- Terrain Scan Processor Terrain Scan Processor Terrain Scan Processor Advanced Terrain Scan Processor Advanced Terrain Scan Processor Advanced Terrain Scan Processor Advanced Hacking Suite > --- WEAPON (4) ------- Scythe > --- INVENTORY (5) ---- Advanced Sensor Array Improved Light Armor Plating Supersonic Drone Bay (1/1) Phase Cannon Peak State ------------ > --- POWER ------------ (None) > --- PROPULSION ------- (None) > --- UTILITY ---------- Improved Signal Interpreter Advanced Terrain Scanner Terrain Scan Processor Terrain Scan Processor Terrain Scan Processor Advanced Terrain Scan Processor Advanced Terrain Scan Processor Hacking Suite Hacking Suite System Shield > --- WEAPON ----------- Katana Kinetic Spear > --- INVENTORY -------- Improved Sensor Array Improved Light Armor Plating Supersonic Drone Bay Phase Cannon Heavy Missile Launcher [Rating: 43] Favorites ----------- Power None Propulsion None Utility Terrain Scan Processor Device Improved Terrain Scanner Storage Small Battery Processor Terrain Scan Processor Hackware Hacking Suite Protection Improved Light Armor Plating Weapon Katana Energy Cannon Phase Cannon Launcher Rocket Launcher Slashing Weapon Katana Piercing Weapon Kinetic Spear Build | -11 -10 -10 -10 -9 -8 -7 -7 -7 -6 -5 -4 -3 ------- Run | Yrd Mat Min Exi Min Mat Fac Low Low Fac Fac Fac Res Slots Evolved 14 | . . . . . 4 2 . . 2 2 2 2 Power 1 | . . . . . . 1 . . . . . . Propulsion . | . . . . . . . . . . . . . Utility 11 | . . . . . 2 1 . . 2 2 2 2 Weapon 2 | . . . . . 2 . . . . . . . Parts Attached 39 | . . . 2 . 6 5 2 1 7 3 7 6 Power . | . . . . . . . . . . . . . Engine . | . . . . . . . . . . . . . Core . | . . . . . . . . . . . . . Reactor . | . . . . . . . . . . . . . Propulsion . | . . . . . . . . . . . . . Treads . | . . . . . . . . . . . . . Leg . | . . . . . . . . . . . . . Wheel . | . . . . . . . . . . . . . Hover . | . . . . . . . . . . . . . Flight . | . . . . . . . . . . . . . Utility 31 | . . . 2 . 4 3 2 1 5 3 6 5 Device 11 | . . . 1 . 2 1 2 . 1 1 . 3 Storage 1 | . . . 1 . . . . . . . . . Processor 12 | . . . . . 1 1 . . 4 2 3 1 Hackware 6 | . . . . . . 1 . 1 . . 3 1 Protection 1 | . . . . . 1 . . . . . . . Artifact . | . . . . . . . . . . . . . Weapon 8 | . . . . . 2 2 . . 2 . 1 1 Energy Gun . | . . . . . . . . . . . . . Energy Cannon 3 | . . . . . 1 1 . . 1 . . . Ballistic Gun . | . . . . . . . . . . . . . Ballistic Cannon . | . . . . . . . . . . . . . Launcher 2 | . . . . . 1 1 . . . . . . Special Weapon . | . . . . . . . . . . . . . Impact Weapon . | . . . . . . . . . . . . . Slashing Weapon 2 | . . . . . . . . . 1 . . 1 Piercing Weapon 1 | . . . . . . . . . . . 1 . Special Melee Weapon . | . . . . . . . . . . . . . Unidentified Prototypes 5 | . . . . . . 1 . . . 1 1 2 Parts Lost 12 | . . . . . . . . . . . 6 6 Power . | . . . . . . . . . . . . . Propulsion . | . . . . . . . . . . . . . Utility 10 | . . . . . . . . . . . 5 5 Weapon 2 | . . . . . . . . . . . 1 1 Highest Loss Streak 6 | . . . . . . . . . . . 6 6 To Critical Strikes . | . . . . . . . . . . . . . Average Backups 4 | . . . . . 4 4 4 5 4 5 4 4 Power . | . . . . . . . . . . . . . Propulsion . | . . . . . . . . . . . . . Utility 2 | . . . . . 3 4 3 3 3 3 3 3 Weapon 1 | . . . . . 1 . 1 2 1 2 1 1 Tool/Special . | . . . . . . . . . . . . . Unused Backups 3 | . . . . . . 1 . . . . 1 1 Power . | . . . . . . . . . . . . . Propulsion . | . . . . . . . . . . . . . Utility 2 | . . . . . . . . . . . 1 1 Weapon 1 | . . . . . . 1 . . . . . . Tool/Special . | . . . . . . . . . . . . . Average Slot Usage (%) 33 | . . . 7 28 19 26 37 38 44 51 51 50 Device 5 | . . . 6 14 1 . 14 15 4 5 3 2 Processor 15 | . . . . . 8 10 15 8 18 27 31 35 Hackware 6 | . . . . . . 6 7 13 13 11 12 10 Protection 2 | . . . . . 8 7 . . 1 . . . Slashing Weapon 1 | . . . . . . . . . 4 5 3 . Peak Build Rating 43 | . . . 9 9 13 17 18 17 31 35 43 43 Average Rating 17 | . . . 4 9 8 12 16 17 23 30 32 34 On Entrance 12 | . . . . 9 9 8 14 17 17 29 33 31 Naked Turns 363 | . 34 271 57 . 1 . . . . . . . Heaviest Build 9 | . . . 2 2 7 3 2 2 3 3 3 9 Greatest Support 3 | 3 3 3 3 3 3 3 3 3 3 3 3 3 Greatest Overweight (x) 2 | . . . . . 2 . . . . . . 2 Average Overweight (x) . | . . . . . . . . . . . . . Largest Inventory Capacity 5 | 5 5 5 5 5 5 5 5 5 5 5 5 5 Average Capacity 5 | 5 5 5 5 5 5 5 5 5 5 5 5 5 Most Carried 5 | . . . 1 1 5 5 5 5 5 5 5 5 Average Carried 4 | . . . . . 4 4 4 5 4 5 4 4 Final Capacity 5 | 5 5 5 5 5 5 5 5 5 5 5 5 5 Final Carried 5 | . . . . 1 5 5 5 5 5 5 5 4 Class Distribution -------------------- 44% | Mutant 24% | Hacker-Scout 18% | Scout 7% | Hacker-Mutant 4% | Scavenger-Mutant Dominant Class ---------------- Mutant | -10/Materials Mutant | -10/Mines Mutant | -10/Exiles Mutant | -9/Mines Mutant | -8/Materials Mutant | -7/Factory Scout | -7/Lower Caves Hacker-Scout | -7/Lower Caves Hacker-Scout | -6/Factory Hacker-Scout | -5/Factory Hacker-Scout | -4/Factory Hacker-Mutant | -3/Research Resources | -11 -10 -10 -10 -9 -8 -7 -7 -7 -6 -5 -4 -3 ----------- Run | Yrd Mat Min Exi Min Mat Fac Low Low Fac Fac Fac Res Matter Collected 813 | 164 . 36 . . 93 183 118 10 80 30 89 10 Remotely . | . . . . . . . . . . . . . Salvage Created 317 | . . . . . 44 . . . 87 30 102 54 Parts 50 | . . . . . 9 . . . 13 8 13 7 Haulers Intercepted . | . . . . . . . . . . . . . Recyclers Shooed 1 | . . . . . . . . . 1 . . . Parts Field Recycled . | . . . . . . . . . . . . . Retrieved Matter . | . . . . . . . . . . . . . Parts Self-Destructed 7 | . . . . . . . 7 . . . . . Prevented . | . . . . . . . . . . . . . Kills | -11 -10 -10 -10 -9 -8 -7 -7 -7 -6 -5 -4 -3 ------- Run | Yrd Mat Min Exi Min Mat Fac Low Low Fac Fac Fac Res Combat Hostiles Destroyed 6 | . . . . . 3 . . . 1 . . 2 Melee 1 | . . . . . . . . . 1 . . . AOE 5 | . . . . . 3 . . . . . . 2 Classes Destroyed 5 | . . . . . 2 . . . 2 . 1 . Worker 1 | . . . . . . . . . . . 1 . Builder 10 | . . . . . . . . . 3 2 4 1 Mechanic 1 | . . . . . 1 . . . . . . . Swarmer 3 | . . . . . . . . . 1 . . 2 Cutter 3 | . . . . . 3 . . . . . . . Best Kill Streak 3 | . . . . . 3 . . . 2 1 2 2 Combat Bots Only 3 | . . . . . 3 . . . 1 . . 2 Max Kills in Single Turn 2 | . . . . . 1 . . . 1 1 1 2 Gunslinging . | . . . . . . . . . . . . . Exploded 2 | . . . . . 1 . . . . . . 2 Melee 1 | . . . . . . . . . 1 . . . Uniques/NPCs Destroyed . | . . . . . . . . . . . . . Combat | -11 -10 -10 -10 -9 -8 -7 -7 -7 -6 -5 -4 -3 -------- Run | Yrd Mat Min Exi Min Mat Fac Low Low Fac Fac Fac Res Hostile Shots Fired 181 | . . 10 . . 13 . . 18 1 . 36 103 Missed 64 | . . 3 . . 5 . . 11 . . 13 32 Hits 117 | . . 7 . . 8 . . 7 1 . 23 71 Melee 2 | . . . . . 2 . . . . . . . Projectile 115 | . . 7 . . 6 . . 7 1 . 23 71 AOE 2 | . . 2 . . . . . . . . . . Critical Strikes 5 | . . . . . 1 . . . . . 3 1 Damage Taken 2593 | . . 154 . . 226 2 . 61 18 . 598 1534 Core 2083 | . . 154 . . 126 . . 50 18 . 433 1302 Absorbed by Shields . | . . . . . . . . . . . . . Core Remaining (%) 80 | 100 . . . 38 77 . . 92 97 100 62 . Volleys Fired 34 | . . . . . 11 2 . . 2 . 7 12 Largest 1 | . . . . . 1 1 . . 1 . 1 1 Hottest 85 | . . . . . 75 39 . . 85 . 85 85 Shots Fired 34 | . . . . . 11 2 . . 2 . 7 12 Gun . | . . . . . . . . . . . . . Cannon 21 | . . . . . 1 . . . 2 . 7 11 Launcher 13 | . . . . . 10 2 . . . . . 1 Special . | . . . . . . . . . . . . . Kinetic . | . . . . . . . . . . . . . Thermal 21 | . . . . . 1 . . . 2 . 7 11 Explosive 13 | . . . . . 10 2 . . . . . 1 Electromagnetic . | . . . . . . . . . . . . . Robot Hit Streak 1 | . . . . . . . . . . . . 1 Robot Miss Streak 2 | . . . . . 2 . . . . . . . Penetration Max . | . . . . . . . . . . . . . Secondary Targets . | . . . . . . . . . . . . . Shots Hit Robots 23 | . . . . . . . . . 9 4 9 1 Core Hits 20 | . . . . . 7 . . . 3 2 4 4 Critical Kills . | . . . . . . . . . . . . . Critical Parts Destroyed . | . . . . . . . . . . . . . Critical Strikes . | . . . . . . . . . . . . . Melee Attacks 46 | . . . . . . . . . 18 4 22 2 Impact . | . . . . . . . . . . . . . Slashing 46 | . . . . . . . . . 18 4 22 2 Piercing . | . . . . . . . . . . . . . Sneak Attacks 16 | . . . . . . . . . 8 2 6 . Combat Hostiles 1 | . . . . . . . . . 1 . . . Follow-up Attacks . | . . . . . . . . . . . . . Damage Inflicted 1982 | . . 17 . . 240 5 . . 540 215 483 482 Guns . | . . . . . . . . . . . . . Cannons 30 | . . . . . . . . . . . . 30 Explosions 692 | . . . . . 240 . . . . . . 452 Melee 1237 | . . . . . . . . . 540 215 482 . Ramming 23 | . . 17 . . . 5 . . . . 1 . Kinetic . | . . . . . . . . . . . . . Thermal 30 | . . . . . . . . . . . . 30 Explosive 692 | . . . . . 240 . . . . . . 452 Electromagnetic . | . . . . . . . . . . . . . Impact . | . . . . . . . . . . . . . Slashing 1237 | . . . . . . . . . 540 215 482 . Piercing . | . . . . . . . . . . . . . Highest Corruption 5 | . . . . . 1 5 . . . 2 5 1 Average Corruption 3 | . . . . . 1 3 . . . 2 4 1 Corruption Purged 5 | . . . . . . 5 . . . . . . Corruption Blocked . | . . . . . . . . . . . . . Effects 6 | . . . . . 1 1 . . . . 4 . Message Errors 2 | . . . . . . . . . . . 2 . Energy Discharges 1 | . . . . . . 1 . . . . . . Data Loss (minor) 1 | . . . . . 1 . . . . . . . Data Loss (major) 2 | . . . . . . . . . . . 2 . Overload Shots . | . . . . . . . . . . . . . Overflow Damage 272 | . . . . . . . . . 111 29 89 43 Projectiles . | . . . . . . . . . . . . . Explosions 43 | . . . . . . . . . . . . 43 Melee 229 | . . . . . . . . . 111 29 89 . Knockbacks . | . . . . . . . . . . . . . Impact . | . . . . . . . . . . . . . Kinetic . | . . . . . . . . . . . . . Secondary . | . . . . . . . . . . . . . Self-Inflicted Damage 94 | . . 8 . . 84 2 . . . . . . Shots 3 | . . . . . 3 . . . . . . . Rammed 5 | . . 3 . . . 1 . . . . 1 . Targets Rammed 5 | . . 3 . . . 1 . . . . 1 . Kicked . | . . . . . . . . . . . . . Crushed . | . . . . . . . . . . . . . Highest Temperature 41 | . . . . . 16 . . . 20 . 41 38 Average Temperature 26 | . . . . . 12 . . . 12 . 33 36 Received Heat Transfer 208 | . . 45 . . 36 . . 24 . . 82 21 Siege Activations . | . . . . . . . . . . . . . Martial Activations . | . . . . . . . . . . . . . Shielding Activations . | . . . . . . . . . . . . . Robots Disrupted . | . . . . . . . . . . . . . Combat Hostiles . | . . . . . . . . . . . . . Robots Corrupted . | . . . . . . . . . . . . . Combat Hostiles . | . . . . . . . . . . . . . Parts Fried . | . . . . . . . . . . . . . Impact Corruptions . | . . . . . . . . . . . . . Robots Melted . | . . . . . . . . . . . . . Combat Hostiles . | . . . . . . . . . . . . . Parts Melted . | . . . . . . . . . . . . . Heat Transferred 37 | . . . . . . . . . . . . 37 Parts Sabotaged . | . . . . . . . . . . . . . Parts Stolen . | . . . . . . . . . . . . . Parts Stripped . | . . . . . . . . . . . . . Power Chain Reactions . | . . . . . . . . . . . . . Alert | -11 -10 -10 -10 -9 -8 -7 -7 -7 -6 -5 -4 -3 ------- Run | Yrd Mat Min Exi Min Mat Fac Low Low Fac Fac Fac Res Maximum Alert Level . | . . . . . . . . . . . . . Low Security (%) 100 | 100 100 100 . 100 100 100 . . 100 100 100 100 Level 1 . | . . . . . . . . . . . . . Level 2 . | . . . . . . . . . . . . . Level 3 . | . . . . . . . . . . . . . Level 4 . | . . . . . . . . . . . . . Level 5 . | . . . . . . . . . . . . . High Security . | . . . . . . . . . . . . . Max Security . | . . . . . . . . . . . . . Peak Influence 145 | . 8 90 . . 145 65 . . 48 5 62 40 Initial 65 | . . . . . . 65 . . 2 4 . 27 Average 15 | . 1 38 . . 26 12 . . 14 2 9 6 Influence Increases 883 | . 8 120 . . 289 72 . 15 114 10 189 66 Destroy 0b10 Robot/C 160 | . . . . . 100 . . . 20 . . 40 Destroy 0b10 Robot/NC 60 | . . . . . 5 . . . 15 10 25 5 Destroy Leader 30 | . . . . . 30 . . . . . . . Allied During Kill 6 | . . . . . 6 . . . . . . . Successful Hack 75 | . 8 . . . . 43 . . 10 . 14 . Disable Machine 60 | . . . . . 30 . . . 15 . 15 . Destroy Structure 132 | . . . . . 73 14 . . 9 . 30 6 Partial Spotted 60 | . . 15 . . 15 15 . . . . . 15 Lose Combat Pursuer 300 | . . 105 . . 30 . . 15 45 . 105 . Influence Decreases 859 | . 8 90 30 . 144 210 7 10 110 19 135 96 Entered New Map 149 | . . . 30 . . 80 4 . 3 5 . 27 Time Decay 656 | . 8 90 . . 124 130 3 10 107 14 111 59 Lost Part 17 | . . . . . . . . . . . 7 10 Lost Ally 37 | . . . . . 20 . . . . . 17 . Squads Dispatched 21 | . 2 . . . 5 2 . . 3 . 6 3 Investigation 3 | . 1 . . . . 1 . . 1 . . . Extermination 6 | . . . . . . 1 . . 1 . 3 1 Reinforcement 12 | . 1 . . . 5 . . . 1 . 3 2 Assault . | . . . . . . . . . . . . . Garrison . | . . . . . . . . . . . . . Intercept . | . . . . . . . . . . . . . Searches Triggered . | . . . . . . . . . . . . . Construction Impeded 2 | . . . . . 1 . . . 1 . . . Haulers Reinforced . | . . . . . . . . . . . . . Active Scanning Responses . | . . . . . . . . . . . . . Cargo Convoy Interrupts . | . . . . . . . . . . . . . Stealth | -11 -10 -10 -10 -9 -8 -7 -7 -7 -6 -5 -4 -3 --------- Run | Yrd Mat Min Exi Min Mat Fac Low Low Fac Fac Fac Res Distress Signals 7 | . . . . . 3 . . . 1 . 2 1 Communications Jammed . | . . . . . . . . . . . . . Distress Signals . | . . . . . . . . . . . . . Times Spotted 72 | . 1 11 . . 18 . 2 2 6 . 17 15 Peak Tracking Total 14 | . 1 4 . . 12 . 3 1 4 . 11 14 Tactical Retreats 15 | . . 3 . . 2 . 1 1 2 . 6 . Traps | -11 -10 -10 -10 -9 -8 -7 -7 -7 -6 -5 -4 -3 ------- Run | Yrd Mat Min Exi Min Mat Fac Low Low Fac Fac Fac Res Traps Triggered 6 | . 1 . . . 1 1 . . . 1 2 . Indirectly . | . . . . . . . . . . . . . Trap Hack Attempts . | . . . . . . . . . . . . . Triggered . | . . . . . . . . . . . . . Disarmed . | . . . . . . . . . . . . . Reprogrammed . | . . . . . . . . . . . . . Reused . | . . . . . . . . . . . . . Traps Extracted . | . . . . . . . . . . . . . Installed . | . . . . . . . . . . . . . Triggered . | . . . . . . . . . . . . . Machines | -11 -10 -10 -10 -9 -8 -7 -7 -7 -6 -5 -4 -3 ---------- Run | Yrd Mat Min Exi Min Mat Fac Low Low Fac Fac Fac Res Machines Disabled 4 | . . . . . 2 . . . 1 . 1 . Max in Single Turn 1 | . . . . . 1 . . . 1 . . . Garrison Access 1 | . . . . . . . . . . . . 1 Machines Repaired . | . . . . . . . . . . . . . Machines Dismantled . | . . . . . . . . . . . . . Machines Sabotaged . | . . . . . . . . . . . . . Overloaded Fab Kills . | . . . . . . . . . . . . . Hacking | -11 -10 -10 -10 -9 -8 -7 -7 -7 -6 -5 -4 -3 --------- Run | Yrd Mat Min Exi Min Mat Fac Low Low Fac Fac Fac Res Machines Accessed 14 | . 1 . 2 . . 4 . . 2 . 4 1 Terminals 9 | . 1 . . . . 4 . . 2 . 2 . Fabricators 2 | . . . . . . . . . . . 2 . Repair Stations . | . . . . . . . . . . . . . Recycling Units . | . . . . . . . . . . . . . Scanalyzers . | . . . . . . . . . . . . . Garrison Access 1 | . . . . . . . . . . . . 1 Total Hacks 29 | . 2 . 2 . . 10 . . 5 . 9 1 Successful 12 | . 1 . 2 . . 3 . . 1 . 4 1 Failed 17 | . 1 . . . . 7 . . 4 . 5 . Catastrophic 3 | . . . . . . 1 . . 2 . . . Database Lockouts . | . . . . . . . . . . . . . Manual 15 | . 2 . 1 . . 7 . . . . 5 . Terminals 23 | . 2 . . . . 10 . . 5 . 6 . Fabricators 3 | . . . . . . . . . . . 3 . Repair Stations . | . . . . . . . . . . . . . Recycling Units . | . . . . . . . . . . . . . Scanalyzers . | . . . . . . . . . . . . . Garrison Access 1 | . . . . . . . . . . . . 1 Terminal Hacks 7 | . 1 . 2 . . 2 . . 1 . 1 . Record 1 | . . . 1 . . . . . . . . . Level Access Points 2 | . . . . . . 1 . . . . 1 . Branch Access Points 2 | . 1 . . . . 1 . . . . . . Locate Traps 1 | . . . . . . . . . 1 . . . Proto ID Catalog 1 | . . . 1 . . . . . . . . . Fabricator Hacks 1 | . . . . . . . . . . . 1 . Network Status 1 | . . . . . . . . . . . 1 . Repair Station Hacks . | . . . . . . . . . . . . . Recycling Unit Hacks . | . . . . . . . . . . . . . Scanalyzer . | . . . . . . . . . . . . . Garrison Access Hacks 1 | . . . . . . . . . . . . 1 Seal Access 1 | . . . . . . . . . . . . 1 Unauthorized Hacks 3 | . . . . . . 1 . . . . 2 . Terminals 1 | . . . . . . 1 . . . . . . Botnet 1 | . . . . . . 1 . . . . . . Fabricators 2 | . . . . . . . . . . . 2 . Liberate 1 | . . . . . . . . . . . 1 . Haulers 1 | . . . . . . . . . . . 1 . Repair Stations . | . . . . . . . . . . . . . Recycling Units . | . . . . . . . . . . . . . Scanalyzers . | . . . . . . . . . . . . . Garrison Access . | . . . . . . . . . . . . . Data Cores Recovered . | . . . . . . . . . . . . . Used . | . . . . . . . . . . . . . Hacking Detections 10 | . 1 . . . . 4 . . 2 . 3 . Full Trace Events 2 | . . . . . . 1 . . 1 . . . Feedback Events . | . . . . . . . . . . . . . Feedback Blocked . | . . . . . . . . . . . . . Robot Schematics Acquired . | . . . . . . . . . . . . . Robots Built . | . . . . . . . . . . . . . Authchips . | . . . . . . . . . . . . . Time . | . . . . . . . . . . . . . Total Robot Build Rating . | . . . . . . . . . . . . . Part Schematics Acquired . | . . . . . . . . . . . . . Parts Built . | . . . . . . . . . . . . . Authchips . | . . . . . . . . . . . . . Time . | . . . . . . . . . . . . . Total Part Build Rating . | . . . . . . . . . . . . . Parts Repaired . | . . . . . . . . . . . . . Time . | . . . . . . . . . . . . . Parts Recycled . | . . . . . . . . . . . . . Recycled Matter . | . . . . . . . . . . . . . Retrieved Matter . | . . . . . . . . . . . . . Retrieved Components . | . . . . . . . . . . . . . Parts Scanalyzed . | . . . . . . . . . . . . . Part Schematics Acquired . | . . . . . . . . . . . . . Parts Damaged . | . . . . . . . . . . . . . Bothacking | -11 -10 -10 -10 -9 -8 -7 -7 -7 -6 -5 -4 -3 ------------ Run | Yrd Mat Min Exi Min Mat Fac Low Low Fac Fac Fac Res Used RIF Installer . | . . . . . . . . . . . . . Robots Hacked . | . . . . . . . . . . . . . Non-combat . | . . . . . . . . . . . . . Combat . | . . . . . . . . . . . . . Robot Hacks Applied . | . . . . . . . . . . . . . Relay Couplers Released . | . . . . . . . . . . . . . Fabnet Peak Effective % . | . . . . . . . . . . . . . Robots Rewired . | . . . . . . . . . . . . . Allies Hacked . | . . . . . . . . . . . . . Hacks Repelled . | . . . . . . . . . . . . . Allies | -11 -10 -10 -10 -9 -8 -7 -7 -7 -6 -5 -4 -3 -------- Run | Yrd Mat Min Exi Min Mat Fac Low Low Fac Fac Fac Res Total Allies 7 | . . . . 5 . . . . . . 2 . Largest Group 5 | . . . . 5 3 . . . . . 2 . Highest-Rated Group 98 | . . . . 79 40 . . . . . 98 . Highest-Rated Ally 49 | . . . . 31 16 . . . . . 49 . Total Orders . | . . . . . . . . . . . . . Ally Attacks 30 | . . . . . 22 . . . . . 8 . Total Damage 567 | . . . . . 303 . . . . . 264 . Kills 2 | . . . . . 2 . . . . . . . Allies Corrupted 1 | . . . . . . . . . . . 1 . Allies Melted . | . . . . . . . . . . . . . Intel | -11 -10 -10 -10 -9 -8 -7 -7 -7 -6 -5 -4 -3 ------- Run | Yrd Mat Min Exi Min Mat Fac Low Low Fac Fac Fac Res Active Infowar (turns) 1724 | . . . . . 8 . 657 83 281 74 448 173 Sensors 740 | . . . . . . . 657 83 . . . . Terrain 1422 | . . . . . . . 567 52 281 74 448 . Structural 173 | . . . . . . . . . . . . 173 ECM 13 | . . . . . 8 . 5 . . . . . Robot Analysis Total . | . . . . . . . . . . . . . Derelict Logs Recovered 2 | . . 1 . 1 . . . . . . . . Drone Launches . | . . . . . . . . . . . . . Drone Recoveries . | . . . . . . . . . . . . . Exploration | -11 -10 -10 -10 -9 -8 -7 -7 -7 -6 -5 -4 -3 ------------- Run | Yrd Mat Min Exi Min Mat Fac Low Low Fac Fac Fac Res Turns Passed 3650 | 10 34 271 122 87 529 554 658 83 358 77 610 257 Spaces Moved 4435 | 20 68 399 237 156 511 802 468 139 550 119 602 364 Core 4435 | 20 68 399 237 156 511 802 468 139 550 119 602 364 Treads . | . . . . . . . . . . . . . Legs . | . . . . . . . . . . . . . Wheels . | . . . . . . . . . . . . . Hover . | . . . . . . . . . . . . . Flight . | . . . . . . . . . . . . . Fastest Speed 50 | 50 50 50 50 50 50 50 50 50 50 50 50 50 Average Speed 50 | 50 50 50 50 50 53 50 50 50 50 50 50 50 Slowest Speed 150 | 50 50 50 50 50 150 50 50 50 50 50 50 150 Overloaded Moves . | . . . . . . . . . . . . . Propulsion Burnouts . | . . . . . . . . . . . . . Robots Hopped . | . . . . . . . . . . . . . Potential Cave-ins 3 | . . . . . . . . . . . 3 . Cave-ins Triggered 1 | . . . . . . . . . . . 1 . Exploration Rate (%) 31 | 3 30 79 59 53 37 22 52 24 17 3 18 12 Regions Visited 12 Branch Regions 5 Pre-discovered Areas 3 | . . 2 1 . . . . . . . . . Known Exits Taken 8 | . 1 . . . 1 1 1 1 1 1 1 . Unknown Exits Taken 4 | 1 . 1 1 1 . . . . . . . . Scrap Searched 8 | . . 2 . . . . 2 4 . . . . Spaces Dug 90 | . . . . . 49 16 . . 9 . 13 3 Terrain Destroyed 147 | . . . . . 101 16 . . 9 . 18 3 Melee 20 | . . . . . . . . . 7 . 11 2 Projectile 10 | . . . . . . . . . 2 . 7 1 AOE 117 | . . . . . 101 16 . . . . . . Terrain Rammed . | . . . . . . . . . . . . . Walls Destroyed . | . . . . . . . . . . . . . Machines Disabled . | . . . . . . . . . . . . . Actions | -11 -10 -10 -10 -9 -8 -7 -7 -7 -6 -5 -4 -3 --------- Run | Yrd Mat Min Exi Min Mat Fac Low Low Fac Fac Fac Res Total 5735 | 19 67 469 239 164 758 954 890 151 604 128 868 424 Wait 1106 | . . 68 . 8 206 136 416 11 12 . 218 31 Move 4423 | 19 67 398 236 155 510 801 467 138 549 118 601 364 Hop . | . . . . . . . . . . . . . Pick Up 16 | . . . 1 1 4 2 2 . 5 . 1 . Fast Attach 35 | . . . 1 . 4 5 . 1 5 4 9 6 Attach 26 | . . . 1 . 9 2 2 . 5 . 3 4 Detach 20 | . . . . . 11 2 . . 1 . 3 3 Swap 2 | . . . . . . . 2 . . . . . Drop 22 | . . . . . 3 3 1 1 7 2 3 2 Fire 34 | . . . . . 11 2 . . 2 . 7 12 Melee 46 | . . . . . . . . . 18 4 22 2 Ram 5 | . . 3 . . . 1 . . . . 1 . Kick . | . . . . . . . . . . . . . Crush . | . . . . . . . . . . . . . Escape Stasis . | . . . . . . . . . . . . . Rewire . | . . . . . . . . . . . . . Trap . | . . . . . . . . . . . . . Miscellaneous . | . . . . . . . . . . . . . Route ------- -11/Scrapyard -10/Materials -10/Mines (discovered 2 exits: [*Mat] / *Exi) -10/Exiles -9/Mines -8/Materials (discovered 2 exits: *Fac x2) -7/Factory (discovered 6 exits: Fac x4 / *Low x2) -7/Lower Caves -7/Lower Caves -6/Factory -5/Factory -4/Factory (discovered 5 exits: *Res x4 / [*Upp]) -3/Research History --------- Turn | Location | Event 5 | -11/Scrapyard | Discovered new exit (range 12) 11 | -11/Scrapyard | Entered Materials 24 | -10/Materials | Identified exit to Mines 45 | -10/Materials | Entered Mines 123 | -10/Mines | Assembled infested the area 147 | -10/Mines | Learned location of Storage (-9) 161 | -10/Mines | Core integrity fell below 50% 181 | -10/Mines | Met 8R-AWN 292 | -10/Mines | Discovered new exit (range 10) 305 | -10/Mines | Build established: Mutant 314 | -10/Mines | Discovered new exit (range 5) 316 | -10/Mines | Entered Exiles 329 | -10/Exiles | Welcomed by 8R-AWN 337 | -10/Exiles | Met EX-HEX 351 | -10/Exiles | Met EX-BIN 357 | -10/Exiles | Aligned with FarCom system 357 | -10/Exiles | Given EX-Vault access code 369 | -10/Exiles | Opened EX-Vault 372 | -10/Exiles | Found Supersonic Drone Bay 385 | -10/Exiles | Warned to stay clear of 0b10 Research branches 398 | -10/Exiles | Met EX-DEC 401 | -10/Exiles | Learned location of Zion (-7) 432 | -10/Exiles | Discovered new exit (range 14) 438 | -10/Exiles | Left Exiles lab with Supersonic Drone Bay 438 | -10/Exiles | Entered Mines 491 | -9/Mines | Received a Rocket Launcher from a helpful Derelict 495 | -9/Mines | Learned location of 1 exit from Materials 518 | -9/Mines | Discovered new exit (range 6) 523 | -9/Mines | Assisted by bots powering up and referring to "LRC-V3" 525 | -9/Mines | Entered Materials 525 | -8/Materials | Accompanied by 3 allies 525 | -8/Materials | Evolved 4 slots: Utility x2, Weapon x2 526 | -8/Materials | Identified exit to Factory 1049 | -8/Materials | Discovered exit to Factory (range 10) 1054 | -8/Materials | Entered Factory 1054 | -7/Factory | Evolved 2 slots: Power x1, Utility x1 1350 | -7/Factory | Identified exit to Lower Caves 1602 | -7/Factory | Identified exit to Factory 1608 | -7/Factory | Entered Lower Caves 1897 | -7/Lower Caves | Build established: Scout 2258 | -7/Lower Caves | Discovered new exit (range 15) 2265 | -7/Lower Caves | Identified exit to Lower Caves 2266 | -7/Lower Caves | Entered another Lower Caves area 2268 | -7/Lower Caves | Attracted the attention of an 0b10 checkpoint 2343 | -7/Lower Caves | Discovered exit to Factory (range 11) 2349 | -7/Lower Caves | Entered Factory 2349 | -6/Factory | Evolved 2 slots: Utility x2 2663 | -6/Factory | Discovered new exit (range 17) 2706 | -6/Factory | Identified exit to Factory 2707 | -6/Factory | Entered another Factory area 2707 | -5/Factory | Evolved 2 slots: Utility x2 2710 | -5/Factory | Build established: Hacker-Scout 2765 | -5/Factory | Discovered new exit (range 14) 2776 | -5/Factory | Identified exit to Factory 2784 | -5/Factory | Entered another Factory area 2784 | -4/Factory | Evolved 2 slots: Utility x2 2907 | -4/Factory | Identified exit to Research 3228 | -4/Factory | Crushed by falling debris 3275 | -4/Factory | Spotted B-86 Titan 3286 | -4/Factory | Discovered new exit (range 4) 3306 | -4/Factory | Lost 6 parts (5u1w) 3394 | -4/Factory | Entered Research 3394 | -3/Research | Evolved 2 slots: Utility x2 3451 | -3/Research | Found Prototype Device 3451 | -3/Research | Identified Imp. Particle Accelerator 3624 | -3/Research | Core integrity fell below 50% 3642 | -3/Research | Core integrity fell below 20% 3651 | -3/Research | Destroyed by S-43 Plague with Heavy Machine Gun Last Messages --------------- to Research Zone 1V. 03593_ Penetrated by Slug. 03593_ Slug penetrates Wall. 03593_ Penetrated by Slug. 03603_ O-24 Administrator sends out distress signal. 03603_ O-24 Administrator: "IFF HANDSHAKE FAILED. SECURING TERMINAL." 03604_ Hacking Suite destroyed. 03612_ ALERT: Hostiles spotted, dispatching reinforcements to Terminal R009. 03615_ Terrain Scan Processor destroyed. 03616_ Structural Scanner destroyed. 03618_ Terrain Scan Processor destroyed. 03621_ Meson Extractor disabled. 03627_ System Shield destroyed. 03629_ S-43 Plague destroyed. 03629_ Destroyed Lgt. Antimatter Reactor. 03629_ S-43 Plague destroyed. 03629_ Destroyed Xenon Bombardment Thruster. 03630_ Hvy. Missile Launcher destroyed. 03639_ Acquired Scythe. Map ----- +----------------------------------------------------+ | ????????????????????????????????# ==] #????? | | ????????????????????????????????# ==] #????? | | ????????????????????????????????# =] +????? | | ????????????????????##+##???????# #????? | | ??????????????# ##### ######### +????? | | ??????????????+ #????? | | ??????????????# ## ! ######/###/#"########????? | | ????????????????????## ##???? ? ???????????? | | ?????????????????????# #?????g ? ??????????? | | ????????????????????## ##??? """ """ ?????????? | | ????????????????????# !#??? """ """ ?????????? | | ????????????????????+ #??#s """ """ ????????? | | ????????????????????# #??# """ """ "???????? | | ????????????????????## ##??# """ "?? ""??????? | | ?????????????????????# ##### ?"" "??? ""??????? | | ?????????????????????# + ??" "???? ##??????? | | ?????????????????????#p##### ?? ??????????????? | | ?????????????????????#pp ## ??? ! ??????????????? | | ?????????????????????# ###???###??????????????? | | ?????????????????????#s #??????????????????????? | | ?????????????????????#s #??????????????????????? | | ?????????????????????#s #??????????????????????? | | ?????????????????????# #??????????????????????? | | ?????????????????????#ss #??????????????????????? | | ?????????????????????# #??????????????????????? | | ?????????????????????# @#??????????????????????? | | ????????????????????#;####;#?????????????????????? | | ????????????????????##????##?????????????????????? | | ?????????????????????????????????????????????????? | | ?????????????????????????????????????????????????? | | ?????????????????????????????????????????????????? | | ?????????????????????????????????????????????????? | | ?????????????????????????????????????????????????? | | ?????????????????????????????????????????????????? | | ?????????????????????????????????????????????????? | | ?????????????????????????????????????????????????? | | ?????????????????????????????????????????????????? | | ?????????????????????????????????????????????????? | | ?????????????????????????????????????????????????? | | ?????????????????????????????????????????????????? | | ?????????????????????????????????????????????????? | | ?????????????????????????????????????????????????? | | ?????????????????????????????????????????????????? | | ?????????????????????????????????????????????????? | | ?????????????????????????????????????????????????? | | ?????????????????????????????????????????????????? | | ?????????????????????????????????????????????????? | | ?????????????????????????????????????????????????? | | ?????????????????????????????????????????????????? | | ?????????????????????????????????????????????????? | +----------------------------------------------------+ Best States ------------- Heat Dissipation 66 Energy Generation 5 Energy Capacity 200 Matter Stores 300 Matter Capacity 300 Sight Range 16 Robot Scan Range 15 Terrain Scan Range 20 Terrain Scan Density 985 ECM Strength 2 Armor Coverage 150 Evasion (%) 50 Offensive Hacking 24 Defensive Hacking 10 Item Schematics ----------------- None Robot Schematics ------------------ None Fabricated ------------ Nothing Repaired ---------- Nothing Alien Tech Used ----------------- None Achievements -------------- None Challenges ------------ None Game ------ Seed ProtonArcsightCutter Manual? 0 Play Time 00:38:27 Cumulative 282.6 hours Start 2025.08.03 @ 20:35:44 End 2025.08.03 @ 21:12:18 Sessions 1 Manual Loads 0 Difficulty Rogue Special Mode None Game No. 197 Rogue 197 Adventurer 0 Explorer 0 Win Type - Total 15 Types 6/0/5/1/1/0/0/1/0/1 Lore% 78 Gallery% 74 Achievement% 74 Wizard Run 0 Options --------- Layout 0 ASCII 0 Keyboard 0 Movement Mouse Keybinds 0 Fullscreen 2 Font 24/Smallcaps Map View 76x50 Zoom Use 0% Tactical HUD 1 Map Filters NONE Filters NONE Steam 1 RUN: 65b820c9-6903-44ec-81ab-028a4fe19f1e